fUSD/lending_fUSD_20251103
["ID","MTS","AMOUNT","RATE_DAILY","PERIOD"]
[392975843,1762189847663,-1791.83249526,0.0003,2]
[392975845,1762189847673,-605.88101483,0.0003,2]
[392975846,1762189847684,-50829.80950725,0.0003,2]
[392975847,1762189847694,-388.5090719,0.0003,4]
[392975848,1762189847705,-500.0,0.00030018,7]
[392975849,1762189847715,-600.0,0.0003002,7]
[392975850,1762189847726,-5000.0,0.00030022,2]
[392975851,1762189847736,-500.0,0.00030063,7]
[392975852,1762189847746,-500.0,0.00030066,7]
[392975853,1762189847757,-500.0,0.0003007,7]
[392975854,1762189847769,-500.0,0.00030101,2]
[392975855,1762189847780,-500.0,0.00030108,7]
[392975856,1762189847791,-307.77807989,0.0003013,2]
[392975857,1762189847802,-1058.11949401,0.0003013,2]
[392975858,1762189847812,-13656.33618725,0.0003013,2]
[392975859,1762189847823,-1179.36970019,0.0003013,5]
[392975860,1762189847833,-625.01096004,0.0003013,2]
[392975861,1762189847844,-198.89258171,0.0003013,2]
[392975862,1762189847854,-1207.11106495,0.0003013,2]
[392975863,1762189847864,-7623.45430598,0.0003013,2]
[392975864,1762189847874,-459.94195303,0.00030133,2]
[392975865,1762189847885,-500.0,0.00030134,7]
[392975866,1762189847896,-1000.0,0.00030136,2]
[392975867,1762189847907,-1000.0,0.00030136,2]
[392975868,1762189847917,-500.0,0.00030136,15]
[392975869,1762189847927,-500.0,0.00030136,2]
[392975870,1762189847938,-199.0,0.00030136,16]
[392975871,1762189847950,-299.67466688,0.00030136,120]
[392975872,1762189847960,-500.0,0.00030136,2]
[392975873,1762189847970,-4982.88,0.00030136,2]
[392975874,1762189847980,-500.0,0.00030136,2]
[392975875,1762189847991,-500.0,0.00030136,2]
[392975876,1762189848001,-300.0,0.00030136,2]
[392975877,1762189848011,-1007.08,0.00030136,2]
[392975878,1762189848022,-500.0,0.00030136,10]
[392975879,1762189848032,-150.0,0.00030136,2]
[392975880,1762189848042,-224.14719722,0.00030136,2]
[392975881,1762189848052,-500.0,0.00030136,2]
[392975882,1762189848062,-854.51,0.00030137,2]
[392975883,1762189848072,-1000.0,0.00030137,2]
[392975884,1762189848083,-500.0,0.00030137,2]
[392975885,1762189848093,-500.0,0.00030137,2]
[392975886,1762189848104,-500.0,0.00030137,2]
[392975887,1762189848113,-500.0,0.00030137,2]
[392975888,1762189848123,-500.0,0.00030137,2]
[392975889,1762189848133,-500.0,0.00030137,2]
[392975890,1762189848144,-500.0,0.00030137,2]
[392975891,1762189848154,-500.0,0.00030137,2]
[392975892,1762189848165,-500.0,0.00030137,2]
[392975893,1762189848175,-500.0,0.00030137,2]
[392975894,1762189848185,-500.0,0.00030137,2]
[392975895,1762189848196,-500.0,0.00030137,2]
[392975896,1762189848206,-500.0,0.00030137,2]
[392975897,1762189848217,-500.0,0.00030137,2]
[392975898,1762189848228,-500.0,0.00030137,2]
[392975899,1762189848238,-500.0,0.00030137,2]
[392975900,1762189848248,-500.0,0.00030137,2]
[392975901,1762189848259,-500.0,0.00030137,2]
[392975902,1762189848274,-500.0,0.00030137,2]
[392975903,1762189848284,-500.0,0.00030137,2]
[392975904,1762189848297,-500.0,0.00030137,2]
[392975905,1762189848306,-500.0,0.00030137,2]
[392975906,1762189848317,-500.0,0.00030137,2]
[392975907,1762189848327,-500.0,0.00030137,2]
[392975908,1762189848339,-309.4540045,0.00030137,2]
[392975909,1762189848351,-500.0,0.00030137,2]
[392975910,1762189848361,-500.0,0.00030137,2]
[392975911,1762189848372,-500.0,0.00030137,2]
[392975912,1762189848382,-500.0,0.00030137,2]
[392975913,1762189848393,-500.0,0.00030137,2]
[392975914,1762189848403,-500.0,0.00030137,2]
[392975915,1762189848414,-500.0,0.00030137,2]
[392975916,1762189848424,-500.0,0.00030137,2]
[392975917,1762189848435,-500.0,0.00030137,2]
[392975918,1762189848445,-500.0,0.00030137,2]
[392975919,1762189848456,-500.0,0.00030137,2]
[392975920,1762189848467,-500.0,0.00030137,2]
[392975923,1762189848479,-500.0,0.00030137,2]
[392975928,1762189848738,-500.0,0.00030137,2]
[392975929,1762189848748,-500.0,0.00030137,2]
[392975930,1762189848758,-500.0,0.00030137,2]
[392975931,1762189848768,-500.0,0.00030137,2]
[392975932,1762189848777,-500.0,0.00030137,2]
[392975933,1762189848787,-500.0,0.00030137,2]
[392975934,1762189848796,-500.0,0.00030137,2]
[392975935,1762189848806,-500.0,0.00030137,2]
[392975936,1762189848815,-500.0,0.00030137,2]
[392975937,1762189848824,-500.0,0.00030137,2]
[392975938,1762189848833,-500.0,0.00030137,2]
[392975939,1762189848842,-500.0,0.00030137,2]
[392975940,1762189848851,-500.0,0.00030137,2]
[392975941,1762189848860,-500.0,0.00030137,2]
[392975942,1762189848870,-500.0,0.00030137,2]
[392975943,1762189848878,-500.0,0.00030137,2]
[392975944,1762189848887,-500.0,0.00030137,2]
[392975945,1762189848899,-500.0,0.00030137,2]
[392975946,1762189848908,-550.0,0.00030137,2]
[392975947,1762189848917,-680.81351478,0.00030155,2]
[392975948,1762189848926,-500.0,0.00030181,7]
[392975949,1762189848936,-500.0,0.000302,7]
[392975950,1762189848945,-600.0,0.00030204,7]
[392975951,1762189848955,-500.0,0.00030207,7]
[392975952,1762189848964,-600.0,0.00030224,7]
[392975954,1762189848974,-500.0,0.00030263,7]
[392975955,1762189848983,-819.51,0.000303,7]
[392975957,1762189848992,-227.189,0.00030318,25]
[392975959,1762189849001,-3244.026,0.00030318,25]
[392975960,1762189849011,-500.0,0.0003032,7]
[392975962,1762189849020,-707.45210646,0.00030368,7]
[392975964,1762189849029,-600.0,0.00030377,7]
[392975965,1762189849039,-500.0,0.00030387,7]
[392975967,1762189849048,-500.0,0.000304,7]
[392975969,1762189849057,-153.91,0.000304,30]
[392975970,1762189849075,-1000.0,0.0003041,2]
[392975972,1762189849085,-500.0,0.0003041,15]
[392975974,1762189849094,-500.0,0.0003041,2]
[392975976,1762189849104,-199.0,0.0003041,17]
[392975978,1762189849114,-500.0,0.0003041,2]
[392975981,1762189849124,-4982.88,0.0003041,2]
[392975982,1762189849134,-500.0,0.0003041,2]
[392975984,1762189849144,-500.0,0.0003041,2]
[392975986,1762189849154,-300.0,0.0003041,2]
[392975988,1762189849163,-1007.08,0.0003041,2]
[392975990,1762189849173,-500.0,0.0003041,10]
[392975993,1762189849183,-150.0,0.0003041,2]
[392975995,1762189849193,-500.0,0.0003041,2]
[392975996,1762189849203,-1000.0,0.00030411,2]
[392975997,1762189849212,-500.0,0.00030417,7]
[392975998,1762189849221,-898.10741278,0.00030429,7]
[392975999,1762189849230,-150.0,0.0003043,7]
[392976000,1762189849239,-150.0,0.0003043,7]
[392976001,1762189849249,-500.0,0.00030455,7]
[392976002,1762189849258,-500.0,0.00030476,2]
[392976003,1762189849269,-2000.0,0.00030506,2]
[392976004,1762189849279,-600.0,0.00030515,7]
[392976005,1762189849287,-500.0,0.00030536,7]
[392976006,1762189849296,-579.31160827,0.00030539,7]
[392976007,1762189849305,-1284.0,0.00030562,2]
[392976008,1762189849315,-500.0,0.00030676,7]
[392976009,1762189849325,-1000.0,0.00030684,2]
[392976011,1762189849334,-500.0,0.00030684,15]
[392976012,1762189849345,-500.0,0.00030684,2]
[392976014,1762189849356,-199.0,0.00030684,18]
[392976016,1762189849365,-500.0,0.00030684,2]
[392976018,1762189849375,-4982.88,0.00030684,2]
[392976020,1762189849384,-500.0,0.00030684,2]
[392976022,1762189849393,-500.0,0.00030684,2]
[392976024,1762189849404,-300.0,0.00030684,2]
[392976026,1762189849413,-1007.08,0.00030684,2]
[392976028,1762189849423,-500.0,0.00030684,10]
[392976030,1762189849432,-150.0,0.00030684,2]
[392976032,1762189849442,-500.0,0.00030684,2]
[392976034,1762189849451,-1000.0,0.00030685,2]
[392976036,1762189849460,-500.0,0.00030748,7]
[392976038,1762189849470,-500.0,0.00030789,7]
[392976040,1762189849479,-2574.24826891,0.0003084,2]
[392976042,1762189849488,-157.0,0.0003087,120]
[392976044,1762189849499,-1284.0,0.00030877,2]
[392976046,1762189849510,-157.0,0.0003088,120]
[392976048,1762189849519,-1318.3637646,0.00030888,2]
[392976050,1762189849528,-157.0,0.0003089,120]
[392976052,1762189849538,-77870.02789204,0.0003095,2]
[392976054,1762189849547,-1000.0,0.00030958,2]
[392976056,1762189849556,-500.0,0.00030958,2]
[392976058,1762189849566,-199.0,0.00030958,19]
[392976060,1762189849575,-500.0,0.00030958,2]
[392976062,1762189849584,-4982.88,0.00030958,2]
[392976064,1762189849593,-500.0,0.00030958,2]
[392976066,1762189849602,-500.0,0.00030958,2]
[392976068,1762189849611,-300.0,0.00030958,2]
[392976070,1762189849621,-1007.08,0.00030958,2]
[392976072,1762189849630,-500.0,0.00030958,10]
[392976074,1762189849639,-218.1953102,0.00030958,2]
[392976076,1762189849650,-500.0,0.00030958,2]
[392976078,1762189849659,-1000.0,0.00030959,2]
[392976080,1762189849668,-211.91,0.00030983,2]
[392976082,1762189849678,-500.0,0.00030999,2]
[392976083,1762189849687,-79317.38450629,0.00031,2]
[392976085,1762189849696,-489.19241238,0.00031,7]
[392976087,1762189849707,-336.51932914,0.00031,5]
[392976090,1762189849716,-6270.63,0.00031,7]
[392976091,1762189849725,-1004.0,0.00031,7]
[392976094,1762189849735,-765.23404621,0.00031007,7]
[392976096,1762189849745,-600.0,0.00031113,7]
[392976098,1762189849754,-500.0,0.00031143,7]
[392976100,1762189849766,-1400.0,0.00031157,7]
[392976102,1762189849775,-1284.0,0.00031192,2]
[392976104,1762189849784,-500.0,0.00031211,7]
[392976106,1762189849793,-1000.0,0.00031232,2]
[392976108,1762189849802,-500.0,0.00031232,2]
[392976110,1762189849811,-199.0,0.00031232,20]
[392976112,1762189849820,-500.0,0.00031232,2]
[392976114,1762189849829,-4982.88,0.00031232,2]
[392976116,1762189849838,-192.14479633,0.00031232,2]
[392976117,1762189849847,-500.0,0.00031232,2]
[392976119,1762189849857,-300.0,0.00031232,2]
[392976121,1762189849870,-1007.08,0.00031232,2]
[392976123,1762189849880,-500.0,0.00031232,10]
[392976124,1762189849890,-500.0,0.00031232,2]
[392976125,1762189849900,-1000.0,0.00031233,2]
[392976126,1762189849910,-3310.91366811,0.00031234,3]
[392976127,1762189849919,-1400.0,0.0003124,7]
[392976128,1762189849929,-210.61899485,0.00031248,120]
[392976129,1762189849938,-600.0,0.00031279,7]
[392976130,1762189849947,-819.51,0.000313,7]
[392976131,1762189849956,-628.05568141,0.00031317,7]
[392976132,1762189849966,-600.0,0.00031387,7]
[392976133,1762189849976,-6270.63,0.000314,7]
[392976134,1762189849985,-153.91,0.000314,30]
[392976135,1762189849994,-500.0,0.00031426,7]
[392976136,1762189850004,-1206.65118536,0.0003143,4]
[392976137,1762189850013,-150.00000001,0.00031479,7]
[392976138,1762189850022,-150.0,0.00031479,7]
[392976139,1762189850032,-150.0,0.00031479,7]
[392976140,1762189850041,-150.0,0.00031479,7]
[392976141,1762189850051,-193.26611569,0.00031479,7]
[392976142,1762189850060,-150.0,0.00031479,7]
[392976143,1762189850069,-150.00000001,0.00031479,7]
[392976144,1762189850079,-150.0,0.00031479,7]
[392976145,1762189850088,-459.94195303,0.00031481,2]
[392976146,1762189850097,-500.0,0.00031481,7]
[392976147,1762189850106,-1518.4,0.000315,2]
[392976148,1762189850115,-1000.0,0.000315,2]
[392976149,1762189850124,-184.12,0.000315,24]
[392976150,1762189850133,-200.0,0.000315,5]
[392976151,1762189850144,-500.0,0.00031505,2]
[392976152,1762189850154,-300.0,0.00031506,10]
[392976153,1762189850163,-666.0,0.00031506,10]
[392976154,1762189850173,-1000.0,0.00031506,2]
[392976155,1762189850183,-500.0,0.00031506,2]
[392976156,1762189850193,-199.0,0.00031506,21]
[392976157,1762189850203,-500.0,0.00031506,2]
[392976158,1762189850213,-4982.88,0.00031506,2]
[392976159,1762189850223,-500.0,0.00031506,2]
[392976160,1762189850233,-300.0,0.00031506,2]
[392976161,1762189850243,-1007.08,0.00031506,2]
[392976162,1762189850253,-500.0,0.00031506,10]
[392976163,1762189850265,-300.0,0.00031506,10]
[392976164,1762189850279,-666.0,0.00031506,10]
[392976165,1762189850289,-262.00461403,0.00031506,2]
[392976166,1762189850299,-300.0,0.00031507,10]
[392976167,1762189850310,-1000.0,0.00031507,2]
[392976168,1762189850320,-300.0,0.00031507,10]
[392976169,1762189850330,-1284.0,0.00031507,2]
[392976170,1762189850340,-1765.58,0.00031508,7]
[392976171,1762189850350,-271.75720946,0.00031516,10]
[392976172,1762189850359,-500.0,0.00031516,2]
[392976173,1762189850369,-706.60316718,0.00031517,2]
[392976174,1762189850379,-500.0,0.00031531,7]
[392976175,1762189850388,-2841.01324969,0.00031569,2]
[392976176,1762189850398,-500.0,0.00031662,7]
[392976177,1762189850408,-727.05397133,0.00031727,7]
[392976178,1762189850417,-1111.17548458,0.00031751,7]
[392976179,1762189850427,-1001.89288589,0.0003178,2]
[392976180,1762189850436,-500.0,0.0003178,2]
[392976181,1762189850446,-300.0,0.0003178,2]
[392976182,1762189850455,-1141.44842712,0.0003178,2]
[392976183,1762189850464,-397.29567561,0.0003178,2]
[392976184,1762189850474,-199.0,0.0003178,22]
[392976185,1762189850486,-500.0,0.0003178,2]
[392976186,1762189850495,-4982.88,0.0003178,2]
[392976187,1762189850506,-500.0,0.0003178,2]
[392976188,1762189850516,-300.0,0.0003178,2]
[392976189,1762189850525,-1007.08,0.0003178,2]
[392976190,1762189850534,-500.0,0.0003178,10]
[392976191,1762189850543,-1000.0,0.00031781,2]
[392976192,1762189850552,-6270.63,0.000318,7]
[392976193,1762189850562,-1284.0,0.00031822,2]
[392976194,1762189850572,-680.81351478,0.00031834,2]
[392976195,1762189850581,-675.28422228,0.00031891,7]
[392976196,1762189850591,-1457.69342916,0.00031902,7]
[392976197,1762189850601,-889.17316318,0.00031925,7]
[392976198,1762189850612,-1385.18673673,0.00031999,15]
[392976199,1762189850622,-151.0,0.00032,2]
[392976200,1762189850632,-354.20692789,0.00032,3]
[392976201,1762189850641,-178.8166217,0.00032,2]
[392976202,1762189850656,-200.0,0.00032,15]
[392976203,1762189850665,-500.0,0.00032054,2]
[392976204,1762189850675,-300.0,0.00032054,2]
[392976205,1762189850685,-199.0,0.00032054,23]
[392976206,1762189850695,-500.0,0.00032054,2]
[392976207,1762189850705,-4982.88,0.00032054,2]
[392976208,1762189850715,-303.45169053,0.00032054,2]
[392976209,1762189850724,-300.0,0.00032054,2]
[392976210,1762189850733,-1007.08,0.00032054,2]
[392976211,1762189850742,-500.0,0.00032054,10]
[392976212,1762189850752,-1000.0,0.00032055,2]
[392976213,1762189850761,-2000.0,0.000321,2]
[392976214,1762189850769,-68237.16014415,0.00032109,14]
[392976215,1762189850778,-1284.0,0.00032137,2]
[392976216,1762189850787,-2000.0,0.00032198,120]
[392976217,1762189850796,-1518.4,0.000322,2]
[392976218,1762189850806,-819.51,0.000322,7]
[392976219,1762189850816,-880.54595751,0.000323,2]
[392976220,1762189850825,-1000.0,0.000323,2]
[392976221,1762189850835,-500.0,0.00032328,2]
[392976222,1762189850844,-300.0,0.00032328,2]
[392976223,1762189850853,-199.0,0.00032328,24]
[392976224,1762189850862,-500.0,0.00032328,2]
[392976225,1762189850871,-4982.88,0.00032328,2]
[392976226,1762189850881,-300.0,0.00032328,2]
[392976227,1762189850890,-1007.08,0.00032328,2]
[392976228,1762189850903,-500.0,0.00032328,10]
[392976229,1762189850912,-1000.0,0.00032329,2]
[392976230,1762189850921,-1284.0,0.00032452,2]
[392976231,1762189850931,-6467.81,0.000326,7]
[392976232,1762189850940,-500.0,0.00032602,2]
[392976233,1762189850949,-300.0,0.00032602,2]
[392976234,1762189850959,-199.0,0.00032602,25]
[392976235,1762189850968,-500.0,0.00032602,2]
[392976236,1762189850978,-4982.88,0.00032602,2]
[392976237,1762189850989,-300.0,0.00032602,2]
[392976238,1762189850998,-1007.08,0.00032602,2]
[392976239,1762189851007,-500.0,0.00032602,10]
[392976240,1762189851016,-1000.0,0.00032603,2]
[392976241,1762189851025,-698.15,0.00032654,2]
[392976242,1762189851035,-698.15,0.00032654,2]
[392976243,1762189851044,-310.08,0.00032654,2]
[392976244,1762189851054,-1000.0,0.00032681,30]
[392976245,1762189851063,-1000.0,0.00032681,30]
[392976246,1762189851072,-1047.22616429,0.00032733,7]
[392976247,1762189851082,-4757.66051102,0.000328,2]
[392976248,1762189851091,-459.94195303,0.00032829,2]
[392976249,1762189851100,-500.0,0.00032876,2]
[392976250,1762189851110,-184.84952116,0.00032876,2]
[392976251,1762189851119,-199.0,0.00032876,26]
[392976252,1762189851128,-500.0,0.00032876,2]
[392976253,1762189851138,-4982.88,0.00032876,2]
[392976254,1762189851150,-300.0,0.00032876,2]
[392976255,1762189851160,-1007.08,0.00032876,2]
[392976256,1762189851169,-361.87912259,0.00032876,10]
[392976257,1762189851179,-339.74,0.00032877,2]
[392976258,1762189851188,-854.51,0.00032877,2]
[392976259,1762189851198,-176.78201766,0.00032877,2]
[392976260,1762189851207,-1000.0,0.00032877,2]
[392976261,1762189851216,-500.0,0.00032877,60]
[392976262,1762189851226,-500.0,0.00032877,2]
[392976263,1762189851236,-1318.3637646,0.00032883,2]
[392976264,1762189851246,-15783.21869214,0.00033,13]
[392976265,1762189851256,-1535.47989538,0.00033,2]
[392976266,1762189851269,-151.30588717,0.00033,2]
[392976267,1762189851279,-2000.0,0.00033,14]
[392976268,1762189851289,-153.91,0.00033,30]
[392976269,1762189851298,-546.331093,0.00033,14]
[392976270,1762189851307,-528.744728,0.00033,8]
[392976271,1762189851318,-500.0,0.00033014,60]
[392976272,1762189851327,-500.0,0.00033014,2]
[392976273,1762189851337,-500.0,0.0003315,2]
[392976274,1762189851348,-199.0,0.0003315,27]
[392976275,1762189851358,-500.0,0.0003315,2]
[392976276,1762189851367,-4982.88,0.0003315,2]
[392976277,1762189851377,-300.0,0.0003315,2]
[392976278,1762189851387,-1007.08,0.0003315,2]
[392976279,1762189851397,-1000.0,0.00033151,2]
[392976280,1762189851406,-500.0,0.00033151,60]
[392976281,1762189851415,-424.76496096,0.00033151,2]
[392976282,1762189851425,-1000.0,0.00033165,2]
[392976283,1762189851434,-262.0,0.0003323,2]
[392976284,1762189851443,-1000.0,0.00033285,30]
[392976285,1762189851453,-1000.0,0.00033285,30]
[392976286,1762189851463,-1630.22207936,0.00033285,30]
[392976287,1762189851474,-500.0,0.00033288,60]
[392976288,1762189851484,-500.0,0.00033424,2]
[392976289,1762189851493,-201.83904765,0.00033424,28]
[392976290,1762189851502,-500.0,0.00033424,2]
[392976291,1762189851511,-4982.88,0.00033424,2]
[392976292,1762189851521,-300.0,0.00033424,2]
[392976293,1762189851530,-1007.08,0.00033424,2]
[392976294,1762189851540,-1000.0,0.00033425,2]
[392976295,1762189851550,-500.0,0.00033425,60]
[392976296,1762189851559,-210.61899485,0.0003344,120]
[392976297,1762189851569,-179.35,0.00033463,2]
[392976298,1762189851579,-352.6,0.00033463,2]
[392976299,1762189851588,-830.62,0.00033463,2]
[392976300,1762189851598,-300.0,0.00033463,2]
[392976301,1762189851608,-150.32,0.00033463,2]
[392976302,1762189851617,-1193.81470655,0.000335,2]
[392976303,1762189851628,-680.81351478,0.00033513,2]
[392976304,1762189851637,-500.0,0.00033562,60]
[392976305,1762189851649,-476.83,0.00033622,2]
[392976306,1762189851658,-226.13997275,0.00033643,7]
[392976307,1762189851668,-500.0,0.00033698,2]
[392976308,1762189851678,-500.0,0.00033698,2]
[392976309,1762189851687,-4982.88,0.00033698,2]
[392976310,1762189851697,-300.0,0.00033698,2]
[392976311,1762189851707,-1007.08,0.00033698,2]
[392976312,1762189851716,-1000.0,0.00033699,2]
[392976313,1762189851725,-553.3291033,0.00033699,60]
[392976314,1762189851734,-500.0,0.00033799,2]
[392976315,1762189851744,-26443.3275799,0.000338,2]
[392976316,1762189851753,-500.0,0.00033972,2]
[392976317,1762189851762,-500.0,0.00033972,2]
[392976318,1762189851772,-4982.88,0.00033972,2]
[392976319,1762189851782,-300.0,0.00033972,2]
[392976320,1762189851791,-1007.08,0.00033972,2]
[392976321,1762189851800,-1000.0,0.00033973,2]
[392976322,1762189851810,-1999.98,0.00034,2]
[392976323,1762189851820,-2000.0,0.00034,2]
[392976324,1762189851830,-2000.0,0.00034,2]
[392976325,1762189851839,-2000.0,0.00034,2]
[392976326,1762189851848,-2000.0,0.00034,2]
[392976327,1762189851858,-2000.0,0.00034,2]
[392976328,1762189851867,-2000.0,0.00034,2]
[392976329,1762189851876,-2000.0,0.00034,2]
[392976330,1762189851887,-1861.5,0.00034,2]
[392976331,1762189851896,-976.96,0.00034,2]
[392976332,1762189851906,-6467.81,0.00034,14]
[392976333,1762189851915,-6270.63,0.00034,14]
[392976334,1762189852056,-999.0,0.00034008,120]
[392976335,1762189852066,-459.94195303,0.00034177,2]
[392976336,1762189852075,-152.43,0.00034233,60]
[392976337,1762189852084,-150.99,0.00034233,60]
[392976338,1762189852094,-150.78,0.00034235,60]
[392976339,1762189852104,-500.0,0.00034246,2]
[392976340,1762189852113,-500.0,0.00034246,2]
[392976341,1762189852123,-4982.88,0.00034246,2]
[392976342,1762189852132,-300.0,0.00034246,2]
[392976343,1762189852142,-1007.08,0.00034246,2]
[392976344,1762189852155,-1000.0,0.00034247,2]
[392976345,1762189852164,-500.0,0.00034247,5]
[392976346,1762189852175,-322.6107,0.00034247,2]
[392976347,1762189852185,-385.06,0.00034284,2]
[392976348,1762189852195,-152.43,0.00034333,60]
[392976349,1762189852206,-150.99,0.00034333,60]
[392976350,1762189852216,-150.78,0.00034335,60]
[392976351,1762189852226,-279.0358342,0.000344,2]
[392976352,1762189852235,-150.99,0.00034433,60]
[392976353,1762189852245,-150.78,0.00034435,60]
[392976354,1762189852255,-433.0,0.0003449,10]
[392976355,1762189852266,-1704.9373132,0.0003449,2]
[392976356,1762189852278,-200.0,0.00034491,2]
[392976357,1762189852288,-200.0,0.00034491,2]
[392976358,1762189852298,-200.0,0.00034491,2]
[392976359,1762189852307,-200.0,0.00034491,2]
[392976360,1762189852318,-200.0,0.00034491,2]
[392976361,1762189852327,-200.0,0.00034491,2]
[392976362,1762189852337,-200.0,0.00034491,2]
[392976363,1762189852349,-200.0,0.00034491,2]
[392976364,1762189852359,-200.0,0.00034491,2]
[392976365,1762189852369,-200.0,0.00034491,2]
[392976366,1762189852379,-200.0,0.00034491,2]
[392976367,1762189852389,-200.0,0.00034491,2]
[392976368,1762189852401,-200.0,0.00034491,2]
[392976369,1762189852411,-200.0,0.00034491,2]
[392976370,1762189852420,-200.0,0.00034491,2]
[392976371,1762189852429,-200.0,0.00034491,2]
[392976372,1762189852439,-200.0,0.00034491,2]
[392976373,1762189852449,-200.0,0.00034491,2]
[392976374,1762189852458,-200.0,0.00034491,2]
[392976375,1762189852467,-200.0,0.00034491,2]
[392976376,1762189852476,-200.0,0.00034491,2]
[392976377,1762189852486,-200.0,0.00034491,2]
[392976378,1762189852496,-200.0,0.00034491,2]
[392976379,1762189852505,-200.0,0.00034491,2]
[392976380,1762189852515,-200.0,0.00034491,2]
[392976381,1762189852525,-200.0,0.00034491,2]
[392976382,1762189852535,-200.0,0.00034491,2]
[392976383,1762189852544,-200.0,0.00034491,2]
[392976384,1762189852554,-200.0,0.00034491,2]
[392976385,1762189852563,-200.0,0.00034491,2]
[392976386,1762189852572,-200.0,0.00034491,2]
[392976387,1762189852582,-200.0,0.00034491,2]
[392976388,1762189852591,-200.0,0.00034491,2]
[392976389,1762189852600,-200.0,0.00034491,2]
[392976390,1762189852610,-200.0,0.00034491,2]
[392976391,1762189852620,-289.0,0.00034491,2]
[392976392,1762189852630,-800.0,0.00034491,13]
[392976393,1762189852639,-800.0,0.00034491,13]
[392976394,1762189852650,-800.0,0.00034491,13]
[392976395,1762189852659,-800.0,0.00034491,13]
[392976396,1762189852669,-800.0,0.00034491,13]
[392976397,1762189852678,-800.0,0.00034491,13]
[392976398,1762189852687,-800.0,0.00034491,13]
[392976399,1762189852696,-594.0,0.00034491,13]
[392976400,1762189852706,-300.0,0.000345,2]
[392976401,1762189852715,-347.44250129,0.000345,2]
[392976402,1762189852725,-500.0,0.0003452,2]
[392976403,1762189852734,-500.0,0.0003452,2]
[392976404,1762189852744,-4982.88,0.0003452,2]
[392976405,1762189852754,-300.0,0.0003452,2]
[392976406,1762189852764,-1007.08,0.0003452,2]
[392976407,1762189852773,-1000.0,0.00034521,2]
[392976408,1762189852782,-150.99,0.00034533,60]
[392976409,1762189852792,-150.78,0.00034535,60]
[392976410,1762189852801,-1425.0,0.00034579,2]
[392976411,1762189852810,-150.99,0.00034633,60]
[392976412,1762189852819,-150.78,0.00034635,60]
[392976413,1762189852829,-1000.0,0.00034658,5]
[392976414,1762189852838,-158.8026884,0.00034733,2]
[392976415,1762189852848,-208.76484368,0.00034733,2]
[392976416,1762189852857,-150.99,0.00034733,60]
[392976417,1762189852867,-150.78,0.00034735,60]
[392976418,1762189852876,-500.0,0.00034794,2]
[392976419,1762189852886,-500.0,0.00034794,2]
[392976420,1762189852897,-4982.88,0.00034794,2]
[392976421,1762189852906,-300.0,0.00034794,2]
[392976422,1762189852915,-1007.08,0.00034794,2]
[392976423,1762189852924,-1000.0,0.00034795,2]
[392976424,1762189852934,-807860.78755938,0.00034816,7]
[392976425,1762189852943,-150.99,0.00034833,60]